[Event "December 12 Early 2023"]
[Site "https://www.chess.com"]
[Date "2023.12.12"]
[Round "6"]
[White "Baskakov, Egor"]
[Black "Pakleza, Zbigniew"]
[Result "0-1"]
[Board "34"]
[TimeControl "180+1"]
[WhiteFideId "24197866"]
[BlackFideId "1119290"]
[WhiteElo "2898"]
[BlackElo "2696"]
[WhiteTeam "RUS"]
[BlackTeam "POL"]
[WhiteClock "0:00:10"]
[BlackClock "0:00:45"]

1. e4 {[%clk 0:03:00]}  d6 {[%clk 0:03:00]} 2. g3 {[%clk 0:03:00]}  Nf6 {[%clk 0:03:01]} 3. Bg2 {[%clk 0:03:00]}  Bg4 {[%clk 0:03:01]} 4. Ne2 {[%clk 0:03:00]}  e6 {[%clk 0:03:01]} 5. h3 {[%clk 0:03:00]}  Bh5 {[%clk 0:03:01]} 6. g4 {[%clk 0:03:00]}  Bg6 {[%clk 0:03:01]} 7. Nbc3 {[%clk 0:03:00]}  c6 {[%clk 0:02:59]} 8. d4 {[%clk 0:02:56]}  d5 {[%clk 0:02:56]} 9. e5 {[%clk 0:02:55]}  Nfd7 {[%clk 0:02:56]} 10. Nf4 {[%clk 0:02:53]}  Be7 {[%clk 0:02:50]} 11. O-O {[%clk 0:02:49]}  c5 {[%clk 0:02:42]} 12. Ncxd5 {[%clk 0:01:49]}  exd5 {[%clk 0:02:40]} 13. Bxd5 {[%clk 0:01:47]}  Nc6 {[%clk 0:02:14]} 14. e6 {[%clk 0:01:40]}  Nf6 {[%clk 0:02:03]} 15. exf7+ {[%clk 0:01:40]}  Bxf7 {[%clk 0:02:04]} 16. Bxf7+ {[%clk 0:01:40]}  Kxf7 {[%clk 0:02:04]} 17. d5 {[%clk 0:01:41]}  g5 {[%clk 0:01:33]} 18. Ne6 {[%clk 0:00:54]}  Qxd5 {[%clk 0:01:32]} 19. Nxg5+ {[%clk 0:00:54]}  Kg7 {[%clk 0:01:26]} 20. Qe2 {[%clk 0:00:54]}  Rhe8 {[%clk 0:01:23]} 21. c3 {[%clk 0:00:45]}  Bf8 {[%clk 0:01:10]} 22. Qc2 {[%clk 0:00:46]}  Ne5 {[%clk 0:01:03]} 23. Rd1 {[%clk 0:00:22]}  Nf3+ {[%clk 0:00:55]} 24. Nxf3 {[%clk 0:00:22]}  Qxf3 {[%clk 0:00:56]} 25. Bg5 {[%clk 0:00:18]}  Re2 {[%clk 0:00:46]} 26. Bxf6+ {[%clk 0:00:10]}  Kxf6 {[%clk 0:00:45]} 0-1

[Event "December 12 Early 2023"]
[Site "https://www.chess.com"]
[Date "2023.12.12"]
[Round "6"]
[White "Steinberg, Nitzan"]
[Black "Tokhirjonova, Gulrukhbegim"]
[Result "1-0"]
[Board "36"]
[TimeControl "180+1"]
[WhiteFideId "2801795"]
[BlackFideId "14203626"]
[WhiteElo "2880"]
[BlackElo "2667"]
[WhiteTeam "ISR"]
[BlackTeam "USA"]
[WhiteClock "0:00:56"]
[BlackClock "0:00:01"]

1. e4 {[%clk 0:03:00]}  e5 {[%clk 0:02:55]} 2. Nf3 {[%clk 0:03:01]}  Nc6 {[%clk 0:02:54]} 3. Bb5 {[%clk 0:03:01]}  a6 {[%clk 0:02:53]} 4. Ba4 {[%clk 0:03:02]}  Nf6 {[%clk 0:02:53]} 5. O-O {[%clk 0:03:02]}  Nxe4 {[%clk 0:02:51]} 6. d4 {[%clk 0:03:02]}  b5 {[%clk 0:02:51]} 7. Bb3 {[%clk 0:03:02]}  d5 {[%clk 0:02:52]} 8. dxe5 {[%clk 0:03:03]}  Be6 {[%clk 0:02:52]} 9. Nbd2 {[%clk 0:03:03]}  Nc5 {[%clk 0:02:49]} 10. c3 {[%clk 0:03:04]}  Be7 {[%clk 0:02:46]} 11. Bc2 {[%clk 0:03:04]}  d4 {[%clk 0:02:44]} 12. Nb3 {[%clk 0:03:04]}  Nxb3 {[%clk 0:02:43]} 13. axb3 {[%clk 0:03:01]}  dxc3 {[%clk 0:02:10]} 14. Be4 {[%clk 0:02:57]}  Qd7 {[%clk 0:02:09]} 15. bxc3 {[%clk 0:02:43]}  Rd8 {[%clk 0:01:44]} 16. Qxd7+ {[%clk 0:02:30]}  Bxd7 {[%clk 0:01:43]} 17. Rxa6 {[%clk 0:02:30]}  Nb8 {[%clk 0:01:43]} 18. Ra7 {[%clk 0:02:26]}  c6 {[%clk 0:01:37]} 19. Be3 {[%clk 0:02:21]}  O-O {[%clk 0:01:33]} 20. h3 {[%clk 0:02:11]}  Rfe8 {[%clk 0:01:28]} 21. Bb6 {[%clk 0:01:58]}  Rc8 {[%clk 0:01:26]} 22. Rd1 {[%clk 0:01:58]}  Be6 {[%clk 0:01:25]} 23. b4 {[%clk 0:01:57]}  h6 {[%clk 0:01:23]} 24. Nd4 {[%clk 0:01:53]}  Bd8 {[%clk 0:00:46]} 25. Bc5 {[%clk 0:01:46]}  Bg5 {[%clk 0:00:33]} 26. Nxe6 {[%clk 0:01:35]}  fxe6 {[%clk 0:00:28]} 27. g3 {[%clk 0:01:25]}  Red8 {[%clk 0:00:25]} 28. Rd6 {[%clk 0:01:18]}  Rxd6 {[%clk 0:00:14]} 29. Bxd6 {[%clk 0:01:16]}  c5 {[%clk 0:00:09]} 30. bxc5 {[%clk 0:01:06]}  Nc6 {[%clk 0:00:07]} 31. Ra6 {[%clk 0:00:58]}  b4 {[%clk 0:00:02]} 32. Rxc6 {[%clk 0:00:55]}  Rxc6 {[%clk 0:00:01]} 33. Bxc6 {[%clk 0:00:56]}  bxc3 {[%clk 0:00:01]} 34. Be4 {[%clk 0:00:56]} 1-0

[Event "December 12 Early 2023"]
[Site "https://www.chess.com"]
[Date "2023.12.12"]
[Round "6"]
[White "Ilamparthi A R"]
[Black "Vishnu Prasanna. V"]
[Result "1-0"]
[Board "37"]
[TimeControl "180+1"]
[WhiteFideId "45015775"]
[BlackFideId "5030692"]
[WhiteElo "2874"]
[BlackElo "2667"]
[WhiteTeam "IND"]
[BlackTeam "IND"]
[WhiteClock "0:02:25"]
[BlackClock "0:01:57"]

1. e4 {[%clk 0:03:00]}  c6 {[%clk 0:02:52]} 2. d3 {[%clk 0:03:00]}  d5 {[%clk 0:02:52]} 3. Nd2 {[%clk 0:03:00]}  e5 {[%clk 0:02:51]} 4. Ngf3 {[%clk 0:03:00]}  Nd7 {[%clk 0:02:50]} 5. d4 {[%clk 0:03:00]}  exd4 {[%clk 0:02:44]} 6. exd5 {[%clk 0:03:00]}  cxd5 {[%clk 0:02:39]} 7. Nxd4 {[%clk 0:02:59]}  Ngf6 {[%clk 0:02:40]} 8. Qe2+ {[%clk 0:02:56]}  Qe7 {[%clk 0:02:32]} 9. Nb5 {[%clk 0:02:56]}  Qxe2+ {[%clk 0:02:28]} 10. Bxe2 {[%clk 0:02:57]}  Kd8 {[%clk 0:02:28]} 11. Nf3 {[%clk 0:02:56]}  a6 {[%clk 0:02:28]} 12. Nbd4 {[%clk 0:02:56]}  Nc5 {[%clk 0:02:24]} 13. Be3 {[%clk 0:02:51]}  Bd6 {[%clk 0:02:22]} 14. O-O {[%clk 0:02:48]}  Kc7 {[%clk 0:02:21]} 15. c4 {[%clk 0:02:42]}  Bd7 {[%clk 0:02:19]} 16. Rac1 {[%clk 0:02:41]}  Rac8 {[%clk 0:02:13]} 17. b4 {[%clk 0:02:38]}  Nce4 {[%clk 0:02:10]} 18. c5 {[%clk 0:02:32]}  Be7 {[%clk 0:02:10]} 19. Ne5 {[%clk 0:02:27]}  Be6 {[%clk 0:01:57]} 20. f3 {[%clk 0:02:25]} 1-0

[Event "December 12 Early 2023"]
[Site "https://www.chess.com"]
[Date "2023.12.12"]
[Round "6"]
[White "Wadsworth, Matthew J"]
[Black "Mikaelyan, Arman"]
[Result "0-1"]
[Board "38"]
[TimeControl "180+1"]
[WhiteFideId "415804"]
[BlackFideId "13304852"]
[WhiteElo "2664"]
[BlackElo "2863"]
[WhiteTeam "ENG"]
[BlackTeam "ARM"]
[WhiteClock "0:00:01"]
[BlackClock "0:00:31"]

1. e4 {[%clk 0:03:00]}  e5 {[%clk 0:02:59]} 2. Nf3 {[%clk 0:03:00]}  Nc6 {[%clk 0:03:00]} 3. Bc4 {[%clk 0:03:00]}  Bc5 {[%clk 0:02:59]} 4. d3 {[%clk 0:03:00]}  Nf6 {[%clk 0:02:59]} 5. c3 {[%clk 0:02:58]}  d6 {[%clk 0:02:59]} 6. O-O {[%clk 0:02:58]}  a6 {[%clk 0:02:57]} 7. a4 {[%clk 0:02:58]}  Ba7 {[%clk 0:02:56]} 8. b4 {[%clk 0:02:53]}  O-O {[%clk 0:02:56]} 9. Be3 {[%clk 0:02:49]}  Be6 {[%clk 0:02:47]} 10. Nbd2 {[%clk 0:02:46]}  d5 {[%clk 0:02:41]} 11. exd5 {[%clk 0:02:42]}  Nxd5 {[%clk 0:02:42]} 12. Bxd5 {[%clk 0:02:34]}  Bxd5 {[%clk 0:02:39]} 13. Bxa7 {[%clk 0:02:34]}  Rxa7 {[%clk 0:02:40]} 14. c4 {[%clk 0:02:29]}  Bxf3 {[%clk 0:02:36]} 15. Nxf3 {[%clk 0:02:29]}  Nxb4 {[%clk 0:02:34]} 16. Nxe5 {[%clk 0:02:25]}  Qd4 {[%clk 0:02:34]} 17. Rb1 {[%clk 0:02:10]}  c5 {[%clk 0:02:31]} 18. Nf3 {[%clk 0:02:08]}  Qxd3 {[%clk 0:02:27]} 19. Qxd3 {[%clk 0:02:07]}  Nxd3 {[%clk 0:02:28]} 20. Rfd1 {[%clk 0:02:07]}  Nb4 {[%clk 0:02:26]} 21. Rd7 {[%clk 0:02:04]}  h6 {[%clk 0:02:16]} 22. Re1 {[%clk 0:01:56]}  Raa8 {[%clk 0:02:12]} 23. Rxb7 {[%clk 0:01:47]}  Rfe8 {[%clk 0:02:12]} 24. Rxe8+ {[%clk 0:01:34]}  Rxe8 {[%clk 0:02:13]} 25. Rc7 {[%clk 0:01:31]}  Nd3 {[%clk 0:02:07]} 26. Rc6 {[%clk 0:01:23]}  g5 {[%clk 0:02:03]} 27. h3 {[%clk 0:01:19]}  Re6 {[%clk 0:02:03]} 28. Rxe6 {[%clk 0:01:00]}  fxe6 {[%clk 0:02:04]} 29. Nd2 {[%clk 0:00:59]}  Nb2 {[%clk 0:01:16]} 30. a5 {[%clk 0:00:55]}  Kf7 {[%clk 0:01:15]} 31. Kf1 {[%clk 0:00:53]}  Ke7 {[%clk 0:01:15]} 32. Ke2 {[%clk 0:00:52]}  Kd6 {[%clk 0:01:14]} 33. Ke3 {[%clk 0:00:42]}  Ke5 {[%clk 0:01:11]} 34. g4 {[%clk 0:00:38]}  Kd6 {[%clk 0:01:00]} 35. Ke4 {[%clk 0:00:35]}  Nd1 {[%clk 0:00:58]} 36. f4 {[%clk 0:00:25]}  Nf2+ {[%clk 0:00:55]} 37. Kf3 {[%clk 0:00:25]}  Nxh3 {[%clk 0:00:55]} 38. Ne4+ {[%clk 0:00:21]}  Kc6 {[%clk 0:00:56]} 39. f5 {[%clk 0:00:16]}  Nf4 {[%clk 0:00:51]} 40. f6 {[%clk 0:00:14]}  Ng6 {[%clk 0:00:49]} 41. Nc3 {[%clk 0:00:13]}  Ne5+ {[%clk 0:00:48]} 42. Kg3 {[%clk 0:00:03]}  Nd7 {[%clk 0:00:35]} 43. f7 {[%clk 0:00:02]}  Kd6 {[%clk 0:00:34]} 44. Kf3 {[%clk 0:00:02]}  Ke7 {[%clk 0:00:34]} 45. Ke4 {[%clk 0:00:02]}  Kxf7 {[%clk 0:00:34]} 46. Na4 {[%clk 0:00:03]}  Ke7 {[%clk 0:00:33]} 47. Nb6 {[%clk 0:00:03]}  Nxb6 {[%clk 0:00:31]} 48. axb6 {[%clk 0:00:01]}  Kd6 {[%clk 0:00:31]} 0-1

[Event "December 12 Early 2023"]
[Site "https://www.chess.com"]
[Date "2023.12.12"]
[Round "6"]
[White "Kazakouski, Valery"]
[Black "Gontcharov, Vladislav"]
[Result "1-0"]
[Board "39"]
[TimeControl "180+1"]
[WhiteFideId "13507443"]
[BlackFideId "4123492"]
[WhiteElo "2854"]
[BlackElo "2661"]
[WhiteTeam "LTU"]
[BlackTeam "RUS"]
[WhiteClock "0:00:04"]
[BlackClock "0:00:00"]

1. Nf3 {[%clk 0:03:00]}  Nf6 {[%clk 0:02:57]} 2. c4 {[%clk 0:03:01]}  c5 {[%clk 0:02:57]} 3. b3 {[%clk 0:03:00]}  g6 {[%clk 0:02:56]} 4. Bb2 {[%clk 0:03:00]}  Bg7 {[%clk 0:02:56]} 5. g3 {[%clk 0:03:01]}  Nc6 {[%clk 0:02:55]} 6. Bg2 {[%clk 0:03:01]}  O-O {[%clk 0:02:55]} 7. O-O {[%clk 0:03:01]}  d5 {[%clk 0:02:55]} 8. cxd5 {[%clk 0:03:02]}  Nxd5 {[%clk 0:02:40]} 9. Bxg7 {[%clk 0:03:02]}  Kxg7 {[%clk 0:02:40]} 10. d4 {[%clk 0:03:02]}  cxd4 {[%clk 0:02:37]} 11. Nxd4 {[%clk 0:03:03]}  Nxd4 {[%clk 0:02:37]} 12. Qxd4+ {[%clk 0:03:04]}  Nf6 {[%clk 0:02:38]} 13. Qe5 {[%clk 0:03:04]}  Qb6 {[%clk 0:02:28]} 14. Nc3 {[%clk 0:02:59]}  Be6 {[%clk 0:02:10]} 15. Na4 {[%clk 0:02:58]}  Qb4 {[%clk 0:01:47]} 16. Nc5 {[%clk 0:02:58]}  Bf5 {[%clk 0:01:35]} 17. Qxe7 {[%clk 0:02:53]}  a5 {[%clk 0:01:24]} 18. a3 {[%clk 0:02:49]}  Qb6 {[%clk 0:01:21]} 19. Rac1 {[%clk 0:02:25]}  Rab8 {[%clk 0:01:11]} 20. Nxb7 {[%clk 0:01:59]}  Qxb3 {[%clk 0:00:57]} 21. Nxa5 {[%clk 0:01:51]}  Qa4 {[%clk 0:00:42]} 22. Nc6 {[%clk 0:01:33]}  Rbe8 {[%clk 0:00:38]} 23. Qb4 {[%clk 0:01:30]}  Qxb4 {[%clk 0:00:38]} 24. axb4 {[%clk 0:01:31]}  Rxe2 {[%clk 0:00:37]} 25. Nd4 {[%clk 0:01:31]}  Rb2 {[%clk 0:00:36]} 26. Nxf5+ {[%clk 0:01:31]}  gxf5 {[%clk 0:00:36]} 27. Rc5 {[%clk 0:01:28]}  Rxb4 {[%clk 0:00:33]} 28. Rxf5 {[%clk 0:01:28]}  h6 {[%clk 0:00:33]} 29. h3 {[%clk 0:01:27]}  Rd8 {[%clk 0:00:31]} 30. Ra1 {[%clk 0:01:26]}  Rd7 {[%clk 0:00:31]} 31. Ra6 {[%clk 0:01:25]}  Ng8 {[%clk 0:00:28]} 32. Rf3 {[%clk 0:00:53]}  Ne7 {[%clk 0:00:27]} 33. h4 {[%clk 0:00:47]}  Rbd4 {[%clk 0:00:25]} 34. Bh3 {[%clk 0:00:47]}  Rc7 {[%clk 0:00:23]} 35. Kg2 {[%clk 0:00:47]}  Ng8 {[%clk 0:00:22]} 36. Bf5 {[%clk 0:00:45]}  Ne7 {[%clk 0:00:21]} 37. Bd3 {[%clk 0:00:44]}  Rcd7 {[%clk 0:00:20]} 38. Bb5 {[%clk 0:00:43]}  Rc7 {[%clk 0:00:20]} 39. Be8 {[%clk 0:00:43]}  Ng6 {[%clk 0:00:19]} 40. h5 {[%clk 0:00:39]}  Ne5 {[%clk 0:00:19]} 41. Rf5 {[%clk 0:00:39]}  Re7 {[%clk 0:00:19]} 42. Bb5 {[%clk 0:00:36]}  Ng4 {[%clk 0:00:16]} 43. Ra2 {[%clk 0:00:23]}  Rb4 {[%clk 0:00:14]} 44. Be2 {[%clk 0:00:22]}  Nf6 {[%clk 0:00:12]} 45. Bf3 {[%clk 0:00:22]}  Nd7 {[%clk 0:00:12]} 46. Rd2 {[%clk 0:00:20]}  Rb6 {[%clk 0:00:10]} 47. Rfd5 {[%clk 0:00:17]}  Nf6 {[%clk 0:00:10]} 48. Ra5 {[%clk 0:00:18]}  Rbe6 {[%clk 0:00:09]} 49. Bd1 {[%clk 0:00:16]}  Re5 {[%clk 0:00:09]} 50. Rxe5 {[%clk 0:00:16]}  Rxe5 {[%clk 0:00:10]} 51. g4 {[%clk 0:00:15]}  Re4 {[%clk 0:00:09]} 52. f3 {[%clk 0:00:14]}  Re5 {[%clk 0:00:09]} 53. Kg3 {[%clk 0:00:13]}  Rd5 {[%clk 0:00:09]} 54. Rxd5 {[%clk 0:00:11]}  Nxd5 {[%clk 0:00:10]} 55. Bb3 {[%clk 0:00:12]}  Ne7 {[%clk 0:00:08]} 56. Kf4 {[%clk 0:00:12]}  Kf6 {[%clk 0:00:08]} 57. Ke4 {[%clk 0:00:11]}  Nc6 {[%clk 0:00:08]} 58. f4 {[%clk 0:00:10]}  Ne7 {[%clk 0:00:08]} 59. Ba4 {[%clk 0:00:10]}  Nc8 {[%clk 0:00:08]} 60. Bb3 {[%clk 0:00:06]}  Ne7 {[%clk 0:00:08]} 61. Bd5 {[%clk 0:00:05]}  Nc8 {[%clk 0:00:08]} 62. Kd4 {[%clk 0:00:06]}  Nd6 {[%clk 0:00:08]} 63. Kc5 {[%clk 0:00:05]}  Ne8 {[%clk 0:00:08]} 64. Kc6 {[%clk 0:00:05]}  Ng7 {[%clk 0:00:08]} 65. Kd7 {[%clk 0:00:03]}  Ne6 {[%clk 0:00:03]} 66. Bxe6 {[%clk 0:00:03]}  fxe6 {[%clk 0:00:04]} 67. Kd6 {[%clk 0:00:04]}  Kf7 {[%clk 0:00:04]} 68. Ke5 {[%clk 0:00:04]}  Ke7 {[%clk 0:00:00]} 69. g5 {[%clk 0:00:04]} 1-0

[Event "December 12 Early 2023"]
[Site "https://www.chess.com"]
[Date "2023.12.12"]
[Round "6"]
[White "Mendez Fortes, Eduardo Jesus"]
[Black "Koelle, Tobias"]
[Result "0-1"]
[Board "40"]
[TimeControl "180+1"]
[WhiteFideId "3502376"]
[BlackFideId "16207378"]
[WhiteElo "2618"]
[BlackElo "2822"]
[WhiteTeam "CUB"]
[BlackTeam "GER"]
[WhiteClock "0:00:34"]
[BlackClock "0:00:42"]

1. e4 {[%clk 0:03:00]}  e5 {[%clk 0:02:53]} 2. Nf3 {[%clk 0:03:00]}  Nc6 {[%clk 0:02:50]} 3. Bb5 {[%clk 0:03:01]}  Nge7 {[%clk 0:02:48]} 4. c3 {[%clk 0:03:01]}  d5 {[%clk 0:02:29]} 5. Nxe5 {[%clk 0:02:58]}  dxe4 {[%clk 0:02:27]} 6. Qa4 {[%clk 0:02:35]}  Qd5 {[%clk 0:02:24]} 7. Nxc6 {[%clk 0:02:32]}  bxc6 {[%clk 0:02:24]} 8. Be2 {[%clk 0:02:31]}  h5 {[%clk 0:02:15]} 9. O-O {[%clk 0:02:31]}  Bg4 {[%clk 0:02:09]} 10. Bc4 {[%clk 0:02:28]}  Qg5 {[%clk 0:02:05]} 11. d4 {[%clk 0:02:25]}  Qg6 {[%clk 0:02:01]} 12. Bf4 {[%clk 0:02:16]}  Bf3 {[%clk 0:01:55]} 13. Bg3 {[%clk 0:02:15]}  h4 {[%clk 0:01:47]} 14. gxf3 {[%clk 0:02:15]}  exf3 {[%clk 0:01:45]} 15. Nd2 {[%clk 0:02:06]}  Qh5 {[%clk 0:01:05]} 16. Bxc7 {[%clk 0:01:45]}  Qg5+ {[%clk 0:01:00]} 17. Bg3 {[%clk 0:01:43]}  Qxd2 {[%clk 0:00:52]} 18. Rfe1 {[%clk 0:01:37]}  Rh6 {[%clk 0:00:51]} 19. Rad1 {[%clk 0:00:51]}  Qg5 {[%clk 0:00:48]} 20. Re5 {[%clk 0:00:50]}  Qg4 {[%clk 0:00:48]} 21. Rde1 {[%clk 0:00:45]}  hxg3 {[%clk 0:00:48]} 22. fxg3 {[%clk 0:00:43]}  f2+ {[%clk 0:00:46]} 23. Kxf2 {[%clk 0:00:36]}  Rxh2+ {[%clk 0:00:45]} 24. Ke3 {[%clk 0:00:35]}  Qxg3+ {[%clk 0:00:41]} 25. Ke4 {[%clk 0:00:34]}  Rh4# {[%clk 0:00:42]} 0-1

[Event "December 12 Early 2023"]
[Site "https://www.chess.com"]
[Date "2023.12.12"]
[Round "6"]
[White "Principe, Gerson"]
[Black "Brodsky, David"]
[Result "1/2-1/2"]
[Board "41"]
[TimeControl "180+1"]
[WhiteFideId "3804550"]
[BlackFideId "2073250"]
[WhiteElo "2618"]
[BlackElo "2818"]
[WhiteTeam "PER"]
[BlackTeam "USA"]
[WhiteClock "0:00:17"]
[BlackClock "0:00:01"]

1. d4 {[%clk 0:02:59]}  Nf6 {[%clk 0:02:59]} 2. e3 {[%clk 0:03:00]}  d5 {[%clk 0:02:58]} 3. Nf3 {[%clk 0:03:01]}  c5 {[%clk 0:02:55]} 4. Be2 {[%clk 0:03:02]}  Nc6 {[%clk 0:02:53]} 5. O-O {[%clk 0:03:02]}  Bg4 {[%clk 0:02:50]} 6. Nbd2 {[%clk 0:03:00]}  e6 {[%clk 0:02:50]} 7. b3 {[%clk 0:02:58]}  cxd4 {[%clk 0:02:47]} 8. exd4 {[%clk 0:02:53]}  Bd6 {[%clk 0:02:47]} 9. Bb2 {[%clk 0:02:53]}  O-O {[%clk 0:02:47]} 10. c4 {[%clk 0:02:54]}  Rc8 {[%clk 0:02:27]} 11. a3 {[%clk 0:02:48]}  a5 {[%clk 0:02:24]} 12. c5 {[%clk 0:02:40]}  Be7 {[%clk 0:02:19]} 13. h3 {[%clk 0:02:41]}  Bh5 {[%clk 0:02:17]} 14. Ne5 {[%clk 0:02:10]}  Bxe2 {[%clk 0:01:50]} 15. Qxe2 {[%clk 0:02:10]}  Nxe5 {[%clk 0:01:46]} 16. dxe5 {[%clk 0:02:11]}  Nd7 {[%clk 0:01:43]} 17. b4 {[%clk 0:02:12]}  axb4 {[%clk 0:01:39]} 18. axb4 {[%clk 0:02:13]}  b6 {[%clk 0:01:39]} 19. cxb6 {[%clk 0:02:03]}  Bxb4 {[%clk 0:01:36]} 20. Bd4 {[%clk 0:01:55]}  Nxb6 {[%clk 0:01:23]} 21. Rfb1 {[%clk 0:01:44]}  Bc5 {[%clk 0:01:21]} 22. Bxc5 {[%clk 0:01:34]}  Rxc5 {[%clk 0:01:22]} 23. Qa6 {[%clk 0:01:34]}  Nd7 {[%clk 0:01:18]} 24. Nf3 {[%clk 0:01:31]}  Qc8 {[%clk 0:01:01]} 25. Rb7 {[%clk 0:01:27]}  Rc1+ {[%clk 0:00:57]} 26. Rxc1 {[%clk 0:01:22]}  Qxc1+ {[%clk 0:00:58]} 27. Qf1 {[%clk 0:01:20]}  Qxf1+ {[%clk 0:00:53]} 28. Kxf1 {[%clk 0:01:21]}  Nc5 {[%clk 0:00:53]} 29. Rc7 {[%clk 0:01:18]}  Ne4 {[%clk 0:00:53]} 30. Nd4 {[%clk 0:01:15]}  h5 {[%clk 0:00:45]} 31. f3 {[%clk 0:01:16]}  Ng3+ {[%clk 0:00:45]} 32. Kf2 {[%clk 0:01:17]}  h4 {[%clk 0:00:45]} 33. Ne2 {[%clk 0:01:14]}  Nxe2 {[%clk 0:00:34]} 34. Kxe2 {[%clk 0:01:15]}  Ra8 {[%clk 0:00:34]} 35. f4 {[%clk 0:01:08]}  Ra3 {[%clk 0:00:31]} 36. Rd7 {[%clk 0:00:58]}  g6 {[%clk 0:00:28]} 37. Kf2 {[%clk 0:00:53]}  Kg7 {[%clk 0:00:29]} 38. Rd8 {[%clk 0:00:52]}  g5 {[%clk 0:00:23]} 39. f5 {[%clk 0:00:50]}  exf5 {[%clk 0:00:22]} 40. Rxd5 {[%clk 0:00:50]}  Ra2+ {[%clk 0:00:12]} 41. Kf3 {[%clk 0:00:49]}  Ra3+ {[%clk 0:00:12]} 42. Kf2 {[%clk 0:00:49]}  Ra4 {[%clk 0:00:11]} 43. Kf3 {[%clk 0:00:29]}  Rf4+ {[%clk 0:00:10]} 44. Ke3 {[%clk 0:00:28]}  Re4+ {[%clk 0:00:10]} 45. Kf3 {[%clk 0:00:28]}  Kf8 {[%clk 0:00:05]} 46. Rd8+ {[%clk 0:00:24]}  Kg7 {[%clk 0:00:04]} 47. Rd5 {[%clk 0:00:23]}  Ra4 {[%clk 0:00:02]} 48. Rb5 {[%clk 0:00:23]}  Ra1 {[%clk 0:00:01]} 49. Kf2 {[%clk 0:00:21]}  Ra3 {[%clk 0:00:01]} 50. Rc5 {[%clk 0:00:20]}  g4 {[%clk 0:00:02]} 51. hxg4 {[%clk 0:00:18]}  fxg4 {[%clk 0:00:03]} 52. Rc4 {[%clk 0:00:18]}  Rg3 {[%clk 0:00:02]} 53. Rf4 {[%clk 0:00:17]}  Kg6 {[%clk 0:00:02]} 54. Rf6+ {[%clk 0:00:17]}  Kg7 {[%clk 0:00:02]} 55. Rf4 {[%clk 0:00:17]}  Kg8 {[%clk 0:00:02]} 56. Kf1 {[%clk 0:00:17]}  Kg7 {[%clk 0:00:01]} 57. Kf2 {[%clk 0:00:17]} 1/2-1/2

[Event "December 12 Early 2023"]
[Site "https://www.chess.com"]
[Date "2023.12.12"]
[Round "6"]
[White "Klukin, Kirill"]
[Black "Cordoba Roa, Angel Gabriel"]
[Result "1-0"]
[Board "42"]
[TimeControl "180+1"]
[WhiteFideId "24199273"]
[BlackFideId "3957624"]
[WhiteElo "2803"]
[BlackElo "2580"]
[WhiteTeam "RUS"]
[BlackTeam "COL"]
[WhiteClock "0:00:24"]
[BlackClock "0:00:29"]

1. e4 {[%clk 0:02:59]}  e5 {[%clk 0:02:59]} 2. Nf3 {[%clk 0:02:59]}  Nc6 {[%clk 0:03:00]} 3. d4 {[%clk 0:02:58]}  exd4 {[%clk 0:03:00]} 4. Nxd4 {[%clk 0:02:59]}  Nf6 {[%clk 0:03:00]} 5. Nxc6 {[%clk 0:02:56]}  bxc6 {[%clk 0:03:01]} 6. e5 {[%clk 0:02:57]}  Qe7 {[%clk 0:03:02]} 7. Qe2 {[%clk 0:02:57]}  Nd5 {[%clk 0:03:03]} 8. c4 {[%clk 0:02:54]}  Nb6 {[%clk 0:03:03]} 9. b3 {[%clk 0:02:54]}  Qe6 {[%clk 0:02:59]} 10. Bb2 {[%clk 0:02:52]}  Bb4+ {[%clk 0:02:54]} 11. Nc3 {[%clk 0:02:40]}  O-O {[%clk 0:02:54]} 12. a3 {[%clk 0:02:27]}  Be7 {[%clk 0:02:50]} 13. g3 {[%clk 0:02:22]}  a5 {[%clk 0:02:49]} 14. h4 {[%clk 0:02:10]}  d6 {[%clk 0:02:27]} 15. Bh3 {[%clk 0:01:58]}  Qxe5 {[%clk 0:02:26]} 16. Qxe5 {[%clk 0:01:53]}  dxe5 {[%clk 0:02:27]} 17. Bxc8 {[%clk 0:01:53]}  Rfxc8 {[%clk 0:02:23]} 18. Ne4 {[%clk 0:01:37]}  f6 {[%clk 0:01:56]} 19. O-O-O {[%clk 0:01:26]}  a4 {[%clk 0:01:55]} 20. c5 {[%clk 0:01:27]}  axb3 {[%clk 0:01:56]} 21. cxb6 {[%clk 0:01:25]}  cxb6 {[%clk 0:01:56]} 22. Rd3 {[%clk 0:01:21]}  Bxa3 {[%clk 0:01:50]} 23. Rxb3 {[%clk 0:01:21]}  Bxb2+ {[%clk 0:01:43]} 24. Kxb2 {[%clk 0:01:22]}  b5 {[%clk 0:01:40]} 25. Rc1 {[%clk 0:01:18]}  Ra4 {[%clk 0:01:37]} 26. Nd6 {[%clk 0:01:17]}  Rca8 {[%clk 0:01:33]} 27. Rxc6 {[%clk 0:00:51]}  Ra2+ {[%clk 0:01:33]} 28. Kc3 {[%clk 0:00:51]}  Rxf2 {[%clk 0:01:33]} 29. Rxb5 {[%clk 0:00:45]}  Rf3+ {[%clk 0:01:24]} 30. Kc4 {[%clk 0:00:43]}  Rxg3 {[%clk 0:01:25]} 31. Kd5 {[%clk 0:00:42]}  h5 {[%clk 0:01:21]} 32. Rb7 {[%clk 0:00:39]}  Ra5+ {[%clk 0:00:56]} 33. Ke6 {[%clk 0:00:39]}  e4 {[%clk 0:00:57]} 34. Rc8+ {[%clk 0:00:32]}  Kh7 {[%clk 0:00:56]} 35. Kf7 {[%clk 0:00:32]}  Rd3 {[%clk 0:00:38]} 36. Ne8 {[%clk 0:00:28]}  Rad5 {[%clk 0:00:35]} 37. Rcc7 {[%clk 0:00:23]}  Rd8 {[%clk 0:00:28]} 38. Nxf6+ {[%clk 0:00:22]}  gxf6 {[%clk 0:00:29]} 39. Kxf6+ {[%clk 0:00:22]}  Kh8 {[%clk 0:00:29]} 40. Rh7+ {[%clk 0:00:23]}  Kg8 {[%clk 0:00:28]} 41. Rbg7+ {[%clk 0:00:23]}  Kf8 {[%clk 0:00:29]} 42. Rh8# {[%clk 0:00:24]} 1-0